[Event "January 9 Late 2024"]
[Site "https://www.chess.com"]
[Date "2024.01.09"]
[Round "11"]
[White "Winkels, Marcel"]
[Black "Gulamirian, Korun"]
[Result "0-1"]
[Board "129"]
[TimeControl "180+1"]
[WhiteFideId "1003887"]
[BlackFideId "4144899"]
[WhiteElo "2012"]
[BlackElo "1648"]
[WhiteTeam "NED"]
[BlackTeam "RUS"]
[WhiteClock "0:00:00"]
[BlackClock "0:00:36"]

1. e4 {[%clk 0:03:00]}  e5 {[%clk 0:02:56]} 2. Nf3 {[%clk 0:02:59]}  Nc6 {[%clk 0:02:56]} 3. d4 {[%clk 0:02:59]}  exd4 {[%clk 0:02:56]} 4. Bc4 {[%clk 0:03:00]}  Nf6 {[%clk 0:02:55]} 5. O-O {[%clk 0:02:45]}  Bc5 {[%clk 0:02:50]} 6. e5 {[%clk 0:02:39]}  d5 {[%clk 0:02:47]} 7. Bb5 {[%clk 0:02:35]}  Ne4 {[%clk 0:02:46]} 8. Bxc6+ {[%clk 0:02:25]}  bxc6 {[%clk 0:02:45]} 9. Nxd4 {[%clk 0:02:26]}  Ba6 {[%clk 0:02:39]} 10. Re1 {[%clk 0:02:22]}  Qh4 {[%clk 0:02:37]} 11. g3 {[%clk 0:02:11]}  Qh3 {[%clk 0:02:24]} 12. c3 {[%clk 0:01:58]}  O-O {[%clk 0:02:23]} 13. Be3 {[%clk 0:01:53]}  Bb6 {[%clk 0:02:11]} 14. Nd2 {[%clk 0:01:49]}  c5 {[%clk 0:02:05]} 15. Nxe4 {[%clk 0:01:41]}  cxd4 {[%clk 0:02:04]} 16. Ng5 {[%clk 0:01:41]}  Qd7 {[%clk 0:01:53]} 17. cxd4 {[%clk 0:01:39]}  h6 {[%clk 0:01:52]} 18. Nf3 {[%clk 0:01:33]}  Rad8 {[%clk 0:01:43]} 19. Rc1 {[%clk 0:01:31]}  Qb5 {[%clk 0:01:39]} 20. Qc2 {[%clk 0:01:25]}  Qd3 {[%clk 0:01:30]} 21. Qxd3 {[%clk 0:01:24]}  Bxd3 {[%clk 0:01:30]} 22. Red1 {[%clk 0:01:23]}  Be4 {[%clk 0:01:29]} 23. Ne1 {[%clk 0:01:16]}  f6 {[%clk 0:01:26]} 24. Bf4 {[%clk 0:01:07]}  fxe5 {[%clk 0:01:25]} 25. Bxe5 {[%clk 0:01:03]}  Rd7 {[%clk 0:01:20]} 26. Bf4 {[%clk 0:00:49]}  g5 {[%clk 0:01:18]} 27. Be3 {[%clk 0:00:48]}  a5 {[%clk 0:01:10]} 28. Nd3 {[%clk 0:00:47]}  Bf3 {[%clk 0:01:07]} 29. Re1 {[%clk 0:00:46]}  Be4 {[%clk 0:00:56]} 30. Ne5 {[%clk 0:00:45]}  Re7 {[%clk 0:00:53]} 31. Rc6 {[%clk 0:00:45]}  Kg7 {[%clk 0:00:52]} 32. Rec1 {[%clk 0:00:41]}  Rf6 {[%clk 0:00:50]} 33. Rxf6 {[%clk 0:00:40]}  Kxf6 {[%clk 0:00:50]} 34. Rc6+ {[%clk 0:00:40]}  Kg7 {[%clk 0:00:49]} 35. Rg6+ {[%clk 0:00:38]}  Bxg6 {[%clk 0:00:46]} 36. a3 {[%clk 0:00:21]}  Be8 {[%clk 0:00:46]} 37. Kf1 {[%clk 0:00:18]}  a4 {[%clk 0:00:46]} 38. Ke1 {[%clk 0:00:17]}  Ba5+ {[%clk 0:00:45]} 39. Kd1 {[%clk 0:00:16]}  c6 {[%clk 0:00:45]} 40. Kc2 {[%clk 0:00:14]}  Bc7 {[%clk 0:00:44]} 41. Nd3 {[%clk 0:00:12]}  Bd6 {[%clk 0:00:43]} 42. Kc3 {[%clk 0:00:11]}  Bg6 {[%clk 0:00:40]} 43. Ne1 {[%clk 0:00:10]}  Rc7 {[%clk 0:00:39]} 44. Kd2 {[%clk 0:00:06]}  c5 {[%clk 0:00:39]} 45. dxc5 {[%clk 0:00:06]}  Bxc5 {[%clk 0:00:39]} 46. Bxc5 {[%clk 0:00:06]}  Rxc5 {[%clk 0:00:39]} 47. Nf3 {[%clk 0:00:06]}  Rc2+ {[%clk 0:00:39]} 48. Ke3 {[%clk 0:00:05]}  Rxb2 {[%clk 0:00:38]} 49. Kd4 {[%clk 0:00:04]}  Rxf2 {[%clk 0:00:37]} 50. Ne5 {[%clk 0:00:04]}  Rxh2 {[%clk 0:00:37]} 51. Kxd5 {[%clk 0:00:00]}  Ra2 {[%clk 0:00:36]} 0-1

[Event "January 9 Late 2024"]
[Site "https://www.chess.com"]
[Date "2024.01.09"]
[Round "11"]
[White "Piscicelli, Daniel Orlando"]
[Black "Shevchenko, Danylo"]
[Result "0-1"]
[Board "130"]
[TimeControl "180+1"]
[WhiteFideId "101958"]
[BlackFideId "14164892"]
[WhiteElo "2133"]
[BlackElo "2522"]
[WhiteTeam "ARG"]
[BlackTeam "UKR"]
[WhiteClock "0:01:52"]
[BlackClock "0:03:01"]

1. e4 {[%clk 0:03:00]}  c6 {[%clk 0:03:00]} 2. d4 {[%clk 0:03:00]}  d6 {[%clk 0:03:01]} 3. Bd3 {[%clk 0:02:58]}  Nd7 {[%clk 0:03:01]} 4. Nf3 {[%clk 0:02:58]}  h6 {[%clk 0:03:02]} 5. Nc3 {[%clk 0:02:56]}  g5 {[%clk 0:03:02]} 6. Be3 {[%clk 0:02:54]}  Bg7 {[%clk 0:03:03]} 7. Qd2 {[%clk 0:02:54]}  Ngf6 {[%clk 0:03:04]} 8. O-O-O {[%clk 0:02:54]}  Ng4 {[%clk 0:03:04]} 9. e5 {[%clk 0:02:52]}  Nxe3 {[%clk 0:03:03]} 10. Qxe3 {[%clk 0:02:51]}  dxe5 {[%clk 0:03:04]} 11. dxe5 {[%clk 0:02:52]}  e6 {[%clk 0:03:04]} 12. Be4 {[%clk 0:02:49]}  Qa5 {[%clk 0:03:04]} 13. h4 {[%clk 0:02:37]}  g4 {[%clk 0:03:03]} 14. Nh2 {[%clk 0:02:33]}  h5 {[%clk 0:03:03]} 15. f4 {[%clk 0:02:12]}  Nxe5 {[%clk 0:03:01]} 16. fxe5 {[%clk 0:01:52]}  Bh6 {[%clk 0:03:01]} 0-1